Cogmind - Beta 15 @@@ ROGUE MODE // 2025.05.19 @ 23:24:36 Player: DuckBoy Result: Destroyed by B2-0SH(R) with Subdweller Laser Performance ------------- Evolutions (0) 0 Regions Visited (2) 400 Robots Destroyed (33) 165 Value Destroyed (916) 916 Prototype IDs (2) 40 Alien Tech Used (0) 0 Bonus (0) 0 TOTAL SCORE: 1521 Bonus ------- None Cogmind --------- Core Integrity 0/250 Matter 280/300 Energy 19/250 System Corruption 0% Temperature Cool (6) Movement Rolling (145) Ox3 Location -10/Subcaves Parts ------- > --- POWER (1) -------- Ion Engine > --- PROPULSION (2) --- Compact Wheel Compact Wheel > --- UTILITY (2) ------ Improved Heat Sink Huge Storage Unit > --- WEAPON (2) ------- Beam Cannon Subdweller Beam Cannon > --- INVENTORY (25) --- Ion Engine Ion Engine Improved Ion Engine Improved Heat Sink High-capacity Matter Pod (200) Structural Scanner Medium Laser Spread Laser Spread Laser Spread Laser Spread Laser Subdweller Laser Beam Cannon Beam Cannon Subdweller Beam Cannon Subdweller Machine Gun Light Cannon Light Cannon Grenade Launcher Grenade Launcher Grenade Launcher Datajack Peak State ------------ > --- POWER ------------ Subdweller Power Source > --- PROPULSION ------- Compact Wheel Subdweller Monowheel > --- UTILITY ---------- Improved Heat Sink Huge Storage Unit > --- WEAPON ----------- Subdweller Beam Cannon Subdweller Machine Gun > --- INVENTORY -------- Ion Engine Ion Engine Ion Engine Improved Ion Engine Improved Ion Engine Compact Wheel Improved Heat Sink High-capacity Matter Pod Structural Scanner Medium Laser Spread Laser Spread Laser Spread Laser Spread Laser Subdweller Laser Beam Cannon Beam Cannon Beam Cannon Subdweller Machine Gun Light Cannon Light Cannon Grenade Launcher Grenade Launcher Grenade Launcher Datajack [Rating: 16] Favorites ----------- Power Improved Ion Engine Engine Improved Ion Engine Propulsion Light Treads Treads Light Treads Leg Aluminum Leg Wheel Compact Wheel Utility Huge Storage Unit Device Structural Scanner Storage Huge Storage Unit Weapon Light Cannon Energy Gun Subdweller Laser Energy Cannon Beam Cannon Ballistic Gun Subdweller Machine Gun Ballistic Cannon Light Cannon Launcher Grenade Launcher Special Melee Weapon Datajack Build | -11 -10 -10 ------- Run | Yrd Mat Sub Slots Evolved . | . . . Power . | . . . Propulsion . | . . . Utility . | . . . Weapon . | . . . Parts Attached 30 | 6 9 15 Power 5 | 1 1 3 Engine 5 | 1 1 3 Core . | . . . Reactor . | . . . Propulsion 6 | 2 . 4 Treads 2 | 2 . . Leg 1 | . . 1 Wheel 3 | . . 3 Hover . | . . . Flight . | . . . Utility 7 | 1 5 1 Device 3 | . 2 1 Storage 4 | 1 3 . Processor . | . . . Hackware . | . . . Protection . | . . . Artifact . | . . . Weapon 12 | 2 3 7 Energy Gun 2 | 1 . 1 Energy Cannon 3 | . . 3 Ballistic Gun 2 | 1 . 1 Ballistic Cannon 2 | . 2 . Launcher 2 | . 1 1 Special Weapon . | . . . Impact Weapon . | . . . Slashing Weapon . | . . . Piercing Weapon . | . . . Special Melee Weapon 1 | . . 1 Unidentified Prototypes . | . . . Parts Lost 6 | . . 6 Power 2 | . . 2 Propulsion 2 | . . 2 Utility 1 | . . 1 Weapon 1 | . . 1 Highest Loss Streak 2 | . . 2 To Critical Strikes . | . . . Average Backups 18 | 1 13 23 Power 3 | . 2 4 Propulsion 1 | . 2 1 Utility 2 | . 1 3 Weapon 10 | . 7 14 Tool/Special . | . . . Unused Backups 13 | . . 13 Power 2 | . . 2 Propulsion . | . . . Utility 1 | . . 1 Weapon 10 | . . 10 Tool/Special . | . . . Average Slot Usage (%) 96 | . 94 99 Engine 13 | . 14 13 Treads 17 | . 28 6 Leg 3 | . . 7 Wheel 6 | . . 14 Device 11 | . 9 13 Storage 14 | . 14 14 Energy Gun 4 | . . 7 Energy Cannon 4 | . . 10 Ballistic Gun 2 | . 1 2 Ballistic Cannon 14 | . 24 4 Launcher 1 | . 1 1 Peak Build Rating 16 | 6 11 16 Average Rating 10 | 4 8 13 On Entrance 5 | . 6 11 Naked Turns . | . . . Heaviest Build 100 | 12 94 100 Greatest Support 40 | 40 40 40 Greatest Overweight (x) 6 | 1 2 6 Average Overweight (x) 2 | . . 3 Largest Inventory Capacity 25 | 8 25 25 Average Capacity 21 | 7 18 25 Most Carried 25 | 4 23 25 Average Carried 18 | 1 13 23 Final Capacity 25 | 8 25 25 Final Carried 23 | 4 23 22 Class Distribution -------------------- 100% | Mutant Dominant Class ---------------- Mutant | -10/Materials Mutant | -10/Subcaves Resources | -11 -10 -10 ----------- Run | Yrd Mat Sub Matter Collected 1578 | 203 920 455 Remotely . | . . . Salvage Created 824 | . 479 345 Parts 55 | . 26 29 Haulers Intercepted 2 | . 2 . Recyclers Shooed 1 | . 1 . Parts Field Recycled . | . . . Retrieved Matter . | . . . Parts Self-Destructed 6 | . . 6 Prevented . | . . . Kills | -11 -10 -10 ------- Run | Yrd Mat Sub Combat Hostiles Destroyed 28 | . 16 12 Cannons 17 | . 12 5 AOE 10 | . 4 6 Classes Destroyed 7 | . 6 1 Hauler 2 | . 2 . Recycler 2 | . 2 . Watcher 1 | . 1 . Swarmer 8 | . 5 3 Grunt 10 | . 8 2 Sentry 1 | . . 1 Subdweller 9 | . 3 6 Best Kill Streak 4 | . 4 2 Combat Bots Only 4 | . 4 2 Max Kills in Single Turn 1 | . 1 1 Gunslinging . | . . . Exploded 1 | . 1 1 Melee . | . . . Uniques/NPCs Destroyed . | . . . Combat | -11 -10 -10 -------- Run | Yrd Mat Sub Hostile Shots Fired 127 | . 69 58 Missed 43 | . 25 18 Hits 84 | . 44 40 Projectile 84 | . 44 40 Critical Strikes 3 | . 3 . Damage Taken 1204 | . 487 717 Core 250 | . 72 178 Absorbed by Shields . | . . . Regen/Repaired (Parts) 51 | . 51 . Core Remaining (%) 100 | 100 . . Volleys Fired 116 | . 66 50 Largest 2 | . 2 2 Hottest 140 | . 60 140 Shots Fired 213 | . 130 83 Gun 30 | . 7 23 Cannon 155 | . 114 41 Launcher 28 | . 9 19 Special . | . . . Kinetic 155 | . 121 34 Thermal 30 | . . 30 Explosive 28 | . 9 19 Electromagnetic . | . . . Robot Hit Streak 17 | . 12 17 Robot Miss Streak 5 | . 5 1 Penetration Max . | . . . Secondary Targets . | . . . Shots Hit Robots 121 | . 77 44 Core Hits 49 | . 26 23 Critical Kills 1 | . . 1 Critical Parts Destroyed . | . . . Critical Strikes 3 | . 2 1 Meltdown 1 | . . 1 Blast 2 | . 2 . Melee Attacks . | . . . Impact . | . . . Slashing . | . . . Piercing . | . . . Sneak Attacks . | . . . Combat Hostiles . | . . . Follow-up Attacks . | . . . Damage Inflicted 3271 | . 1753 1518 Guns 168 | . 23 145 Cannons 1942 | . 1251 691 Explosions 1157 | . 475 682 Melee . | . . . Ramming 4 | . 4 . Kinetic 1743 | . 1274 469 Thermal 367 | . . 367 Explosive 1157 | . 475 682 Electromagnetic . | . . . Impact . | . . . Slashing . | . . . Piercing . | . . . Highest Corruption . | . . . Average Corruption . | . . . Corruption Purged . | . . . Corruption Blocked . | . . . Overload Shots . | . . . Overflow Damage 52 | . 52 . Projectiles 50 | . 50 . Explosions 2 | . 2 . Melee . | . . . Knockbacks 11 | . 11 . Impact . | . . . Kinetic 11 | . 11 . Secondary . | . . . Self-Inflicted Damage . | . . . Shots . | . . . Rammed 1 | . 1 . Targets Rammed 1 | . 1 . Kicked . | . . . Crushed . | . . . Highest Temperature 56 | . 56 15 Average Temperature 14 | . 15 8 Received Heat Transfer 315 | . 135 180 Siege Activations . | . . . Martial Activations . | . . . Shielding Activations . | . . . Robots Disrupted . | . . . Combat Hostiles . | . . . Robots Corrupted . | . . . Combat Hostiles . | . . . Parts Fried . | . . . Impact Corruptions . | . . . Robots Melted 1 | . . 1 Combat Hostiles 1 | . . 1 Parts Melted 1 | . . 1 Heat Transferred 531 | . . 531 Parts Sabotaged . | . . . Parts Stolen . | . . . Parts Stripped . | . . . Power Chain Reactions . | . . . Alert | -11 -10 -10 ------- Run | Yrd Mat Sub Maximum Alert Level . | . . . Low Security (%) 100 | 100 100 . Level 1 . | . . . Level 2 . | . . . Level 3 . | . . . Level 4 . | . . . Level 5 . | . . . High Security . | . . . Max Security . | . . . Peak Influence 77 | . 77 . Initial . | . . . Average 23 | . 24 . Influence Increases 653 | . 483 170 Destroy 0b10 Robot/C 380 | . 260 120 Destroy 0b10 Robot/NC 25 | . 25 . Destroy Leader 96 | . 76 20 Successful Hack 28 | . 28 . Disable Machine 30 | . 30 . Destroy Structure 34 | . 34 . Lose Combat Pursuer 60 | . 30 30 Influence Decreases 653 | . 436 217 Entered New Map 23 | . . 23 Time Decay 600 | . 436 164 Lost Part 30 | . . 30 Squads Dispatched 3 | . 3 . Investigation 1 | . 1 . Extermination . | . . . Reinforcement 2 | . 2 . Assault . | . . . Garrison . | . . . Intercept . | . . . Searches Triggered . | . . . Construction Impeded . | . . . Haulers Reinforced . | . . . Active Scanning Responses . | . . . Cargo Convoy Interrupts . | . . . Stealth | -11 -10 -10 --------- Run | Yrd Mat Sub Distress Signals 1 | . 1 . Communications Jammed . | . . . Distress Signals . | . . . Times Spotted 42 | . 25 17 Peak Tracking Total 3 | . 3 3 Tactical Retreats 2 | . 1 1 Traps | -11 -10 -10 ------- Run | Yrd Mat Sub Traps Triggered 2 | . 1 1 Indirectly . | . . . Trap Hack Attempts 117 | . . 117 Triggered . | . . . Disarmed . | . . . Reprogrammed 9 | . . 9 Reused . | . . . Traps Extracted . | . . . Installed . | . . . Triggered . | . . . Machines | -11 -10 -10 ---------- Run | Yrd Mat Sub Machines Disabled 2 | . 2 . Max in Single Turn 1 | . 1 . Machines Repaired . | . . . Machines Dismantled . | . . . Machines Sabotaged . | . . . Overloaded Fab Kills . | . . . Hacking | -11 -10 -10 --------- Run | Yrd Mat Sub Machines Accessed 7 | . 6 1 Terminals 4 | . 4 . Fabricators . | . . . Repair Stations 1 | . 1 . Recycling Units 1 | . 1 . Scanalyzers . | . . . Garrison Access . | . . . Total Hacks 23 | . 19 4 Successful 16 | . 12 4 Failed 7 | . 7 . Catastrophic . | . . . Database Lockouts . | . . . Manual 6 | . 6 . Terminals 15 | . 15 . Fabricators . | . . . Repair Stations 2 | . 2 . Recycling Units 2 | . 2 . Scanalyzers . | . . . Garrison Access . | . . . Terminal Hacks 13 | . 9 4 Record 4 | . . 4 Robot Schematic 1 | . 1 . Robot Analysis 1 | . 1 . Prototype ID Bank 1 | . 1 . Dispatch Records 3 | . 3 . Transport Status 1 | . 1 . Registered Components 1 | . 1 . Zone Layout 1 | . 1 . Fabricator Hacks . | . . . Repair Station Hacks 2 | . 2 . Scan Component 1 | . 1 . Repair 1 | . 1 . Recycling Unit Hacks 1 | . 1 . Retrieve Matter 1 | . 1 . Scanalyzer . | . . . Garrison Access Hacks . | . . . Unauthorized Hacks . | . . . Terminals . | . . . Fabricators . | . . . Repair Stations . | . . . Recycling Units . | . . . Scanalyzers . | . . . Garrison Access . | . . . Data Cores Recovered . | . . . Used . | . . . Hacking Detections 5 | . 5 . Full Trace Events . | . . . Feedback Events . | . . . Feedback Blocked . | . . . Robot Schematics Acquired 1 | . 1 . Robots Built . | . . . Authchips . | . . . Time . | . . . Total Robot Build Rating . | . . . Part Schematics Acquired . | . . . Parts Built . | . . . Authchips . | . . . Time . | . . . Total Part Build Rating . | . . . Parts Repaired 1 | . 1 . Time 26 | . 26 . Parts Recycled . | . . . Recycled Matter . | . . . Retrieved Matter . | . . . Retrieved Components . | . . . Parts Scanalyzed . | . . . Part Schematics Acquired . | . . . Parts Damaged . | . . . Bothacking | -11 -10 -10 ------------ Run | Yrd Mat Sub Used RIF Installer . | . . . Robots Hacked . | . . . Non-combat . | . . . Combat . | . . . Robot Hacks Applied . | . . . Relay Couplers Released . | . . . Fabnet Peak Effective % . | . . . Robots Rewired . | . . . Allies Hacked . | . . . Hacks Repelled . | . . . Allies | -11 -10 -10 -------- Run | Yrd Mat Sub Total Allies . | . . . Largest Group . | . . . Highest-Rated Group . | . . . Highest-Rated Ally . | . . . Total Orders . | . . . Ally Attacks . | . . . Total Damage . | . . . Kills . | . . . Allies Corrupted . | . . . Allies Melted . | . . . Intel | -11 -10 -10 ------- Run | Yrd Mat Sub Active Infowar (turns) 2108 | . 1550 558 Structural 2108 | . 1550 558 Robot Analysis Total 1 | . 1 . Derelict Logs Recovered . | . . . Drone Launches . | . . . Drone Recoveries . | . . . Exploration | -11 -10 -10 ------------- Run | Yrd Mat Sub Turns Passed 4770 | 76 2384 2310 Spaces Moved 1794 | 42 862 890 Core 3 | 3 . . Treads 1034 | 39 862 133 Legs . | . . . Wheels 757 | . . 757 Hover . | . . . Flight . | . . . Fastest Speed 50 | 50 160 129 Average Speed 209 | 153 239 184 Slowest Speed 320 | 160 320 320 Overloaded Moves . | . . . Propulsion Burnouts . | . . . Robots Hopped . | . . . Potential Cave-ins . | . . . Cave-ins Triggered . | . . . Exploration Rate (%) 49 | 4 93 50 Regions Visited 2 Branch Regions 1 Pre-discovered Areas 1 | . . 1 Known Exits Taken . | . . . Unknown Exits Taken 2 | 1 1 . Scrap Searched 10 | . . 10 Spaces Dug . | . . . Terrain Destroyed 111 | . 43 68 Melee . | . . . Projectile 2 | . . 2 AOE 109 | . 43 66 Terrain Rammed . | . . . Walls Destroyed . | . . . Machines Disabled . | . . . Actions | -11 -10 -10 --------- Run | Yrd Mat Sub Total 2581 | 51 1056 1474 Wait 480 | . 89 391 Move 1792 | 41 861 890 Hop . | . . . Pick Up 28 | 4 20 4 Fast Attach 14 | 6 4 4 Attach 4 | . . 4 Detach 1 | . 1 . Swap 18 | . 8 10 Drop 10 | . 6 4 Fire 116 | . 66 50 Melee . | . . . Ram . | . . . Kick . | . . . Crush 1 | . 1 . Escape Stasis . | . . . Rewire . | . . . Trap 117 | . . 117 Miscellaneous . | . . . Route ------- -11/Scrapyard -10/Materials (discovered 5 exits: [*Mat x3] / [*Min] / *Sub) -10/Subcaves (discovered 2 exits: [Mat] / [*Scr]) History --------- Turn | Location | Event 6 | -11/Scrapyard | Discovered new exit (range 15) 77 | -11/Scrapyard | Entered Materials 247 | -10/Materials | Discovered new exit (range 8) 301 | -10/Materials | Repaired Grenade Launcher 342 | -10/Materials | Build established: Mutant 653 | -10/Materials | Discovered new exit (range 4) 677 | -10/Materials | Derelicts attacked the area 969 | -10/Materials | Discovered new exit (range 11) 1818 | -10/Materials | Discovered new exit (range 14) 2059 | -10/Materials | Discovered new exit (range 9) 2461 | -10/Materials | Entered Subcaves 2461 | -10/Subcaves | Discovered new exit (range 10) 2462 | -10/Subcaves | Approached by a straggling Scientist 2855 | -10/Subcaves | Core integrity fell below 50% 3005 | -10/Subcaves | Scientist uncovered a shortcut to Scraptown 3136 | -10/Subcaves | Visited Clippyterm 3141 | -10/Subcaves | Learned Factory garrison access intel 4210 | -10/Subcaves | Ambushed by Subdweller buried in earth 4505 | -10/Subcaves | Core integrity fell below 20% 4636 | -10/Subcaves | Learned location of Zion (-6) 4636 | -10/Subcaves | Met a Zionite searching for "candidates" 4679 | -10/Subcaves | Disturbed a concealed Subdweller 4714 | -10/Subcaves | A swath of the cavern ceiling suddenly collapsed 4771 | -10/Subcaves | Destroyed by B2-0SH(R) with Subdweller Laser Last Messages --------------- 04636_ GY-FCI(z): "Hey you! It's really dangerous down here, I feel that you could die at any moment. For your health and safety might I suggest a trip to Zion?" World map updated: -6/Zion. 04648_ Acquired 11 matter. 04679_ UP-YCO(R) angrily emerges from the Twisted Machinery. 04680_ UP-YCO(R) destroyed. 04684_ Acquired 2 matter. 04690_ Searching scrap... 04690_ Found Barrage Gun. 04690_ Found Sub. Beam Cannon. 04690_ Found 48 Matter. 04692_ Searching scrap... 04692_ Found Sub. Laser. 04692_ Found Barrage Gun. 04697_ Acquired Sub. Beam Cannon. 04713_ Imp. Ion Engine destroyed. 04714_ XM-PYM(R) crushed by falling debris. A swath of the cavern ceiling suddenly collapses. 04760_ Sub. Machine Gun destroyed. Map ----- +----------------------------------------------------+ | | | ?????????????????????????????????????????????????? | | ?????????????????????????????????????????????????? | | ?????????????????????????????????????????????????? | | ?????????????????????????????????????????????????? | | ?????????????????????????????????????????????????? | | ?????????????????????????????????????????????????? | | ?????????????????????????????????????????????????? | | ?????????????????????????????????????????????????? | | ?????????????????????????????????????????????????? | | ?????????????????????????????????????????????????? | | ?????????????????????????????????????????????????? | | ???????????????????????????#######???????????????? | | ???????????????????????????#"&% "#???????????????? | | ???????????????????????????#[[##[#???????????????? | | ?????????????????#######???####&=###?????????????? | | ?????????????????# #######"&#&%##????????????? | | ?????????????????## ## ##!#&& #????????????? | | ??????????????????## <&< #????????????? | | ???????????????????## ##????????? | | ????????????????????## ####### | | ????????????????????## ## ### ## # | | ????????????????????# ## ##?## "# | | ????????????????????# ;;; ###?## "## | | ???????????????????##;;% ;;# ### ##### " | | ???????????????????# ; & @ ##?????? | | ???????????????????##; ##?????????? | | ???????????????????#; ; # # ##???????????? | | ???????????????????#; ;;###### ##??????????? | | ???????????????????#; ;;##?## #??????????? | | ???????????????????### ;##??# ####??????????? | | ?????????????????????# #???# ###?????????????? | | #############???###?## #???# ###???????????????? | | ## # ##### ### #???###?????????????????? | | R##???????????????????????? | | ## ## ## # #???????????????????????? | | #### ########## #???????????????????????? | | #??# #####????????#; #???????????????????????? | | ##?####????????????# #???????????????????????? | | # #?????????????????# ##???????????????????????? | | ##??????????????????# ????????????????????????? | | ##??????????????????# ???????????????????????? | | #??????????????????? ??????????????????????? | | #??????????????????? #?????????????????????? | | ##??????????????????? ####?????????????????????? | | #???????????????????? #????????????????????????? | | ##???????????????????###????????????????????????? | | #??????????????????????????????????????????????? | | #??????????????????????????????????????????????? | | ##??????????????????????????????????????????????? | +----------------------------------------------------+ Best States ------------- Heat Dissipation 39 Energy Generation 15 Energy Capacity 265 Matter Stores 300 Matter Capacity 300 Sight Range 16 Terrain Scan Density 10 Evasion (%) 40 Recoil Reduction 2 Item Schematics ----------------- None Robot Schematics ------------------ M-13 Machinist | -10/Materials | Hacked Fabricated ------------ Nothing Repaired ---------- Grenade Launcher | 15% | -10/Materials Alien Tech Used ----------------- None Achievements -------------- None Challenges ------------ None Game ------ Seed ArmorDisassembledTerrabomb Manual? 0 Play Time 00:22:35 Cumulative 501.9 hours Start 2025.05.19 @ 22:37:18 End 2025.05.19 @ 23:24:36 Sessions 1 Manual Loads 0 Difficulty Rogue Special Mode None Game No. 321 Rogue 318 Adventurer 3 Explorer 0 Win Type - Total 8 Types 7/0/1/0/0/0/0/0/0/0 Lore% 74 Gallery% 71 Achievement% 68 Wizard Run 0 Options --------- Layout 0 ASCII 0 Keyboard 0 Movement Numpad Keybinds 0 Fullscreen 1 Font 18/SmallcapsGlow Map View 76x50 Zoom Use 0% Tactical HUD 1 Map Filters NONE Filters NONE Steam 1 RUN: f504d1ac-978d-46fa-8dbf-c730b531dd8a